[Event "Late-Titled-Tuesday-Blitz-March-12-2024"]
[Site "Chess.com"]
[Date "2024.03.12"]
[Round "1"]
[White "janhelmer03"]
[Black "ChessSwole"]
[Result "0-1"]
[WhiteElo "2399"]
[BlackElo "2715"]
[TimeControl "180+1"]
[EndTime "14:06:46 PDT"]
[Termination "ChessSwole won by resignation"]

1. d4 {[%clk 0:02:57.4]} 1... d5 {[%clk 0:02:59.2]} 2. c4 {[%clk 0:02:53.7]}
2... e6 {[%clk 0:02:59.7]} 3. cxd5 {[%clk 0:02:52.3]} 3... exd5 {[%clk
0:03:00.6]} 4. Nc3 {[%clk 0:02:52.7]} 4... c6 {[%clk 0:02:59.8]} 5. Nf3 {[%clk
0:02:52.9]} 5... Bf5 {[%clk 0:02:59.2]} 6. Bf4 {[%clk 0:02:49.3]} 6... Bd6
{[%clk 0:02:58.5]} 7. Bxd6 {[%clk 0:02:49]} 7... Qxd6 {[%clk 0:02:59.4]} 8. e3
{[%clk 0:02:49.6]} 8... Ne7 {[%clk 0:02:57.6]} 9. Bd3 {[%clk 0:02:50.2]} 9...
O-O {[%clk 0:02:57.4]} 10. O-O {[%clk 0:02:49.2]} 10... Nd7 {[%clk 0:02:55.8]}
11. Qc2 {[%clk 0:02:49.3]} 11... Bxd3 {[%clk 0:02:54.9]} 12. Qxd3 {[%clk
0:02:50.2]} 12... a5 {[%clk 0:02:55.1]} 13. Rac1 {[%clk 0:02:48.2]} 13... g6
{[%clk 0:02:53.8]} 14. Na4 {[%clk 0:02:48.2]} 14... Nf5 {[%clk 0:02:46.6]} 15.
Nc5 {[%clk 0:02:44.4]} 15... Nxc5 {[%clk 0:02:46.6]} 16. Rxc5 {[%clk 0:02:45]}
16... h5 {[%clk 0:02:40.6]} 17. h3 {[%clk 0:02:42.9]} 17... a4 {[%clk
0:02:38.4]} 18. Qa3 {[%clk 0:02:41.1]} 18... Ra6 {[%clk 0:02:34.1]} 19. Rfc1
{[%clk 0:02:31.2]} 19... Qe7 {[%clk 0:02:30.6]} 20. R5c3 {[%clk 0:02:30.7]}
20... Qxa3 {[%clk 0:02:19.8]} 21. Rxa3 {[%clk 0:02:31.6]} 21... Nd6 {[%clk
0:02:19.2]} 22. Nd2 {[%clk 0:02:28.6]} 22... Nb5 {[%clk 0:02:17.2]} 23. Rd3
{[%clk 0:02:28.2]} 23... Rb6 {[%clk 0:02:11.6]} 24. Rc2 {[%clk 0:01:57.4]} 24...
Re8 {[%clk 0:02:03.1]} 25. f3 {[%clk 0:01:47.8]} 25... Nd6 {[%clk 0:02:02.2]}
26. Kf2 {[%clk 0:01:45.3]} 26... Kg7 {[%clk 0:01:58]} 27. Ra3 {[%clk 0:01:39.8]}
27... Ra8 {[%clk 0:01:53.1]} 28. b3 {[%clk 0:01:25.5]} 28... Rba6 {[%clk
0:01:52.6]} 29. b4 {[%clk 0:01:11.9]} 29... Rb6 {[%clk 0:01:47.7]} 30. Rb2
{[%clk 0:01:10.9]} 30... f5 {[%clk 0:01:38.5]} 31. Rc3 {[%clk 0:00:57.1]} 31...
a3 {[%clk 0:01:35.1]} 32. Rbb3 {[%clk 0:00:42.5]} 32... Nb5 {[%clk 0:01:34.3]}
33. Rd3 {[%clk 0:00:42.4]} 33... Ra4 {[%clk 0:01:33.9]} 34. Nb1 {[%clk
0:00:41.9]} 34... Nd6 {[%clk 0:01:30.1]} 35. Nxa3 {[%clk 0:00:33.3]} 35... Rbxb4
{[%clk 0:01:22.5]} 36. Rxb4 {[%clk 0:00:32.9]} 36... Rxb4 {[%clk 0:01:23.4]} 37.
Rb3 {[%clk 0:00:33.4]} 37... Ra4 {[%clk 0:01:22.3]} 38. Ke2 {[%clk 0:00:15.4]}
38... b5 {[%clk 0:01:22]} 39. Kf1 {[%clk 0:00:05.7]} 39... Kf6 {[%clk
0:01:16.6]} 40. f4 {[%clk 0:00:02.3]} 40... Ke6 {[%clk 0:01:14.2]} 41. h4 {[%clk
0:00:02.1]} 41... Nc4 {[%clk 0:01:14.5]} 42. Nxc4 {[%clk 0:00:01.9]} 42... dxc4
{[%clk 0:01:15.4]} 43. Rb2 {[%clk 0:00:01.9]} 43... Kd5 {[%clk 0:01:10.4]} 44.
Ke2 {[%clk 0:00:01.9]} 44... c3 {[%clk 0:01:10.8]} 45. Rc2 {[%clk 0:00:01.9]}
45... Kc4 {[%clk 0:01:10.8]} 46. g3 {[%clk 0:00:01.2]} 46... b4 {[%clk
0:01:08.1]} 47. Rc1 {[%clk 0:00:01.7]} 47... Rxa2+ {[%clk 0:01:08]} 48. Kf3
{[%clk 0:00:02.6]} 48... b3 {[%clk 0:01:08.1]} 0-1

[Event "Late-Titled-Tuesday-Blitz-March-12-2024"]
[Site "Chess.com"]
[Date "2024.03.12"]
[Round "1"]
[White "arenal72"]
[Black "Sajkochess"]
[Result "1-0"]
[WhiteElo "2658"]
[BlackElo "2316"]
[TimeControl "180+1"]
[EndTime "14:06:47 PDT"]
[Termination "arenal72 won by resignation"]

1. Nf3 {[%clk 0:03:00.9]} 1... Nf6 {[%clk 0:02:59.6]} 2. g3 {[%clk 0:02:58.9]}
2... d5 {[%clk 0:02:58.4]} 3. Bg2 {[%clk 0:02:59.5]} 3... e6 {[%clk 0:02:58.9]}
4. O-O {[%clk 0:02:59.7]} 4... c5 {[%clk 0:02:59.2]} 5. c4 {[%clk 0:02:55.8]}
5... d4 {[%clk 0:02:57.2]} 6. d3 {[%clk 0:02:54.8]} 6... h6 {[%clk 0:02:51.4]}
7. e4 {[%clk 0:02:52.9]} 7... Nc6 {[%clk 0:02:44.6]} 8. a3 {[%clk 0:02:40.3]}
8... a5 {[%clk 0:02:42.7]} 9. b3 {[%clk 0:02:35.7]} 9... Bd6 {[%clk 0:02:39.8]}
10. Kh1 {[%clk 0:02:30.4]} 10... e5 {[%clk 0:02:28.1]} 11. Nh4 {[%clk
0:02:29.7]} 11... O-O {[%clk 0:02:00.9]} 12. Nf5 {[%clk 0:02:21.1]} 12... Bxf5
{[%clk 0:01:59.9]} 13. exf5 {[%clk 0:02:20.8]} 13... Qd7 {[%clk 0:01:53.6]} 14.
g4 {[%clk 0:02:16]} 14... Nh7 {[%clk 0:01:44.2]} 15. Nd2 {[%clk 0:02:12.9]}
15... Qe7 {[%clk 0:01:13.8]} 16. Ne4 {[%clk 0:02:10.5]} 16... Bc7 {[%clk
0:01:14.1]} 17. Qf3 {[%clk 0:02:04.1]} 17... Qh4 {[%clk 0:00:58.6]} 18. Nxc5
{[%clk 0:01:59.9]} 18... e4 {[%clk 0:00:57.2]} 19. Qh3 {[%clk 0:01:56.4]} 19...
Qxh3 {[%clk 0:00:51.6]} 20. Bxh3 {[%clk 0:01:57.3]} 20... exd3 {[%clk 0:00:52]}
21. Nxd3 {[%clk 0:01:54.6]} 21... Ne5 {[%clk 0:00:43.2]} 22. Bf4 {[%clk
0:01:44.8]} 22... Nxd3 {[%clk 0:00:31.2]} 23. Bxc7 {[%clk 0:01:42.6]} 23... Rfc8
{[%clk 0:00:30]} 24. Bb6 {[%clk 0:01:41.7]} 24... a4 {[%clk 0:00:21.6]} 25. bxa4
{[%clk 0:01:17.6]} 25... Rxc4 {[%clk 0:00:19.7]} 26. a5 {[%clk 0:01:18.1]} 26...
Nf4 {[%clk 0:00:10.9]} 27. Bg2 {[%clk 0:01:18]} 27... Nxg2 {[%clk 0:00:10.5]}
28. Kxg2 {[%clk 0:01:18.9]} 28... d3 {[%clk 0:00:11.2]} 29. f3 {[%clk
0:01:18.1]} 29... Rc2+ {[%clk 0:00:10.6]} 30. Rf2 {[%clk 0:01:17]} 30... Re8
{[%clk 0:00:10.8]} 31. Rd1 {[%clk 0:01:11.4]} 31... Ree2 {[%clk 0:00:10.4]} 32.
Rxd3 {[%clk 0:01:11.2]} 32... Ng5 {[%clk 0:00:04.9]} 33. Rxe2 {[%clk 0:01:08.9]}
33... Rxe2+ {[%clk 0:00:05.8]} 34. Kg3 {[%clk 0:01:08]} 34... h5 {[%clk
0:00:02]} 35. h4 {[%clk 0:01:07.6]} 35... Nh7 {[%clk 0:00:02.3]} 36. Rd8+ {[%clk
0:01:07.2]} 36... Nf8 {[%clk 0:00:03.2]} 37. Bc5 {[%clk 0:01:07.6]} 37... hxg4
{[%clk 0:00:03.6]} 38. Rxf8+ {[%clk 0:01:06.9]} 38... Kh7 {[%clk 0:00:04.5]} 39.
fxg4 {[%clk 0:01:07.1]} 39... Rd2 {[%clk 0:00:04.4]} 40. Rxf7 {[%clk 0:01:06.9]}
40... Rd3+ {[%clk 0:00:05.3]} 41. Kf4 {[%clk 0:01:07.3]} 41... Rc3 {[%clk
0:00:06]} 42. Bd4 {[%clk 0:01:07.1]} 42... Rc4 {[%clk 0:00:06.9]} 43. Ke4 {[%clk
0:01:07.4]} 43... Ra4 {[%clk 0:00:07.4]} 44. Rxb7 {[%clk 0:01:06.2]} 44... Kh6
{[%clk 0:00:08.3]} 45. g5+ {[%clk 0:01:05.5]} 45... Kh5 {[%clk 0:00:08.3]} 46.
Rxg7 {[%clk 0:01:05.7]} 46... Kg4 {[%clk 0:00:08.9]} 47. f6 {[%clk 0:01:05.3]}
47... Rxa5 {[%clk 0:00:09.5]} 48. f7 {[%clk 0:01:05]} 48... Kh5 {[%clk
0:00:10.4]} 49. f8=Q {[%clk 0:01:04.4]} 49... Re5+ {[%clk 0:00:10.8]} 50. Kxe5
{[%clk 0:01:04.2]} 1-0

[Event "Late-Titled-Tuesday-Blitz-March-12-2024"]
[Site "Chess.com"]
[Date "2024.03.12"]
[Round "1"]
[White "jocmil"]
[Black "ccccvhhhj"]
[Result "1-0"]
[WhiteElo "2788"]
[BlackElo "2444"]
[TimeControl "180+1"]
[EndTime "14:06:48 PDT"]
[Termination "jocmil won on time"]

1. b3 {[%clk 0:02:59.9]} 1... d5 {[%clk 0:02:58]} 2. Bb2 {[%clk 0:03:00.8]} 2...
c5 {[%clk 0:02:56]} 3. e3 {[%clk 0:03:00.7]} 3... Nc6 {[%clk 0:02:56.4]} 4. Bb5
{[%clk 0:02:59.9]} 4... Bf5 {[%clk 0:02:46.7]} 5. Nf3 {[%clk 0:02:58]} 5... e6
{[%clk 0:02:46.6]} 6. Ne5 {[%clk 0:02:57.5]} 6... Qb6 {[%clk 0:02:43.2]} 7.
Bxc6+ {[%clk 0:02:55.5]} 7... bxc6 {[%clk 0:02:44.1]} 8. g4 {[%clk 0:02:54.6]}
8... Bg6 {[%clk 0:02:42]} 9. h4 {[%clk 0:02:54.3]} 9... f6 {[%clk 0:02:40.9]}
10. Nxg6 {[%clk 0:02:53.8]} 10... hxg6 {[%clk 0:02:41.8]} 11. Nc3 {[%clk
0:02:48.7]} 11... Bd6 {[%clk 0:02:37.7]} 12. Qe2 {[%clk 0:02:42.5]} 12... Ne7
{[%clk 0:02:29.7]} 13. O-O-O {[%clk 0:02:40.8]} 13... c4 {[%clk 0:02:23.8]} 14.
h5 {[%clk 0:02:34.1]} 14... cxb3 {[%clk 0:02:20.8]} 15. axb3 {[%clk 0:02:33.8]}
15... g5 {[%clk 0:02:15.6]} 16. f4 {[%clk 0:02:32.9]} 16... Qa5 {[%clk
0:01:54.3]} 17. fxg5 {[%clk 0:02:16.1]} 17... fxg5 {[%clk 0:01:47.2]} 18. Na4
{[%clk 0:02:16.1]} 18... e5 {[%clk 0:01:41.3]} 19. e4 {[%clk 0:02:03.9]} 19...
d4 {[%clk 0:01:19.1]} 20. Rhf1 {[%clk 0:01:58.6]} 20... O-O-O {[%clk 0:00:44.2]}
21. Qc4 {[%clk 0:01:54.9]} 21... Qb5 {[%clk 0:00:36.3]} 22. Qe6+ {[%clk
0:01:46.7]} 22... Kc7 {[%clk 0:00:36.9]} 23. Rf7 {[%clk 0:01:44.3]} 23... Rd7
{[%clk 0:00:36.1]} 24. Rxg7 {[%clk 0:01:35.6]} 24... d3 {[%clk 0:00:24.3]} 25.
Qc4 {[%clk 0:00:36.4]} 25... dxc2 {[%clk 0:00:20.5]} 26. Kxc2 {[%clk 0:00:36.3]}
26... Qa5 {[%clk 0:00:10.6]} 27. Bc3 {[%clk 0:00:34.6]} 27... Qb5 {[%clk
0:00:07.8]} 28. Rf1 {[%clk 0:00:34.2]} 28... Qb7 {[%clk 0:00:06.8]} 29. Rff7
{[%clk 0:00:33.6]} 29... Rb8 {[%clk 0:00:06.7]} 30. Ba5+ {[%clk 0:00:32.6]}
30... Kc8 {[%clk 0:00:04.8]} 31. Rf8+ {[%clk 0:00:31.8]} 1-0

[Event "Late-Titled-Tuesday-Blitz-March-12-2024"]
[Site "Chess.com"]
[Date "2024.03.12"]
[Round "1"]
[White "Rinqed222"]
[Black "Fh2411"]
[Result "0-1"]
[WhiteElo "2310"]
[BlackElo "2650"]
[TimeControl "180+1"]
[EndTime "14:06:49 PDT"]
[Termination "Fh2411 won by resignation"]

1. e4 {[%clk 0:03:00.1]} 1... c5 {[%clk 0:02:59.9]} 2. Nc3 {[%clk 0:02:59.1]}
2... e6 {[%clk 0:02:59.9]} 3. Nf3 {[%clk 0:02:58.1]} 3... a6 {[%clk 0:02:59.9]}
4. g3 {[%clk 0:02:53.3]} 4... b5 {[%clk 0:02:57.6]} 5. Bg2 {[%clk 0:02:53.2]}
5... Bb7 {[%clk 0:02:58.2]} 6. d4 {[%clk 0:02:53.3]} 6... cxd4 {[%clk
0:02:50.1]} 7. Nxd4 {[%clk 0:02:53]} 7... Nc6 {[%clk 0:02:40.7]} 8. O-O {[%clk
0:02:43.2]} 8... Qb6 {[%clk 0:02:32.3]} 9. Nb3 {[%clk 0:02:11.6]} 9... d6 {[%clk
0:02:21.7]} 10. Be3 {[%clk 0:02:09.5]} 10... Qc7 {[%clk 0:02:21.7]} 11. a4
{[%clk 0:01:48.3]} 11... b4 {[%clk 0:02:21.1]} 12. Ne2 {[%clk 0:01:46.7]} 12...
Nf6 {[%clk 0:02:21.2]} 13. a5 {[%clk 0:01:42]} 13... Be7 {[%clk 0:02:17.4]} 14.
Bb6 {[%clk 0:01:33.1]} 14... Qd7 {[%clk 0:02:12.9]} 15. c3 {[%clk 0:01:07.2]}
15... O-O {[%clk 0:02:10.5]} 16. Qc2 {[%clk 0:01:02.9]} 16... Rfc8 {[%clk
0:02:05.1]} 17. Rad1 {[%clk 0:00:48]} 17... Qe8 {[%clk 0:01:39.6]} 18. Qb1
{[%clk 0:00:45.5]} 18... bxc3 {[%clk 0:01:36.6]} 19. Nxc3 {[%clk 0:00:42.9]}
19... Ne5 {[%clk 0:01:36.5]} 20. f4 {[%clk 0:00:24.8]} 20... Nc4 {[%clk
0:01:36.4]} 21. Nd2 {[%clk 0:00:24.1]} 21... Nxb6 {[%clk 0:01:34.5]} 22. axb6
{[%clk 0:00:22.8]} 22... Bd8 {[%clk 0:01:34.2]} 23. e5 {[%clk 0:00:20.5]} 23...
Bxb6+ {[%clk 0:01:33.9]} 24. Kh1 {[%clk 0:00:20.1]} 24... Bxg2+ {[%clk
0:01:33.2]} 25. Kxg2 {[%clk 0:00:21]} 25... dxe5 {[%clk 0:01:17.6]} 26. fxe5
{[%clk 0:00:21.1]} 26... Ng4 {[%clk 0:01:18.3]} 27. Qe4 {[%clk 0:00:03.3]} 27...
Ne3+ {[%clk 0:01:16.7]} 28. Kh3 {[%clk 0:00:03.4]} 28... Nxd1 {[%clk 0:01:14.9]}
29. Nxd1 {[%clk 0:00:03.8]} 29... h6 {[%clk 0:01:04.5]} 30. Nc4 {[%clk
0:00:03.2]} 30... Bc5 {[%clk 0:01:04.1]} 31. Nde3 {[%clk 0:00:02.6]} 31... Ra7
{[%clk 0:00:59]} 32. Ng4 {[%clk 0:00:02.6]} 32... Rd7 {[%clk 0:00:59.6]} 33. Rf6
{[%clk 0:00:02.6]} 33... Rd4 {[%clk 0:00:58.5]} 34. Qf3 {[%clk 0:00:02.2]} 34...
Rxc4 {[%clk 0:00:52.8]} 35. Rxh6 {[%clk 0:00:02.5]} 35... Rxg4 {[%clk
0:00:51.9]} 36. Qxg4 {[%clk 0:00:02.3]} 36... Bf8 {[%clk 0:00:48.6]} 37. Qh4
{[%clk 0:00:02]} 37... gxh6 {[%clk 0:00:48.8]} 38. Qg4+ {[%clk 0:00:02.1]} 38...
Bg7 {[%clk 0:00:49.2]} 0-1

[Event "Late-Titled-Tuesday-Blitz-March-12-2024"]
[Site "Chess.com"]
[Date "2024.03.12"]
[Round "1"]
[White "DishonorOnYourCow"]
[Black "Jospem"]
[Result "0-1"]
[WhiteElo "2565"]
[BlackElo "3117"]
[TimeControl "180+1"]
[EndTime "14:06:50 PDT"]
[Termination "Jospem won on time"]

1. d4 {[%clk 0:03:00.9]} 1... Nf6 {[%clk 0:02:59]} 2. c4 {[%clk 0:03:01]} 2...
e6 {[%clk 0:02:57.6]} 3. Nf3 {[%clk 0:03:00.9]} 3... Bb4+ {[%clk 0:02:56.1]} 4.
Nbd2 {[%clk 0:03:00.7]} 4... O-O {[%clk 0:02:51.2]} 5. a3 {[%clk 0:03:00.3]}
5... Be7 {[%clk 0:02:52]} 6. e4 {[%clk 0:03:00.1]} 6... d6 {[%clk 0:02:52.9]} 7.
Be2 {[%clk 0:02:59.2]} 7... Nfd7 {[%clk 0:02:53.6]} 8. b4 {[%clk 0:02:58.5]}
8... e5 {[%clk 0:02:54.1]} 9. d5 {[%clk 0:02:58.1]} 9... a5 {[%clk 0:02:53.7]}
10. Bb2 {[%clk 0:02:57.2]} 10... c5 {[%clk 0:02:53.9]} 11. b5 {[%clk 0:02:56.7]}
11... Nb6 {[%clk 0:02:54.2]} 12. O-O {[%clk 0:02:55.7]} 12... f5 {[%clk
0:02:54.1]} 13. exf5 {[%clk 0:02:40.6]} 13... Bxf5 {[%clk 0:02:55]} 14. a4
{[%clk 0:02:35.4]} 14... Qe8 {[%clk 0:02:53.1]} 15. Re1 {[%clk 0:02:22.6]} 15...
Qg6 {[%clk 0:02:51.5]} 16. Nf1 {[%clk 0:02:19.6]} 16... N8d7 {[%clk 0:02:47.7]}
17. Ng3 {[%clk 0:02:19]} 17... Bg4 {[%clk 0:02:31.5]} 18. Nxe5 {[%clk
0:02:11.8]} 18... Nxe5 {[%clk 0:02:28.1]} 19. Bxg4 {[%clk 0:02:11.2]} 19...
Nbxc4 {[%clk 0:02:22.2]} 20. Be6+ {[%clk 0:02:08.6]} 20... Kh8 {[%clk
0:02:22.9]} 21. Bxe5 {[%clk 0:02:04.9]} 21... Nxe5 {[%clk 0:02:21.2]} 22. Qe2
{[%clk 0:01:34.2]} 22... Bg5 {[%clk 0:02:09.1]} 23. Rad1 {[%clk 0:01:29.9]}
23... Rf4 {[%clk 0:02:03.6]} 24. Ne4 {[%clk 0:00:38]} 24... Be7 {[%clk
0:01:59.4]} 25. Kh1 {[%clk 0:00:37]} 25... Raf8 {[%clk 0:01:57.9]} 26. f3 {[%clk
0:00:36.5]} 26... c4 {[%clk 0:01:57.8]} 27. Rf1 {[%clk 0:00:32.2]} 27... Nd3
{[%clk 0:01:44.3]} 28. Nd2 {[%clk 0:00:19.5]} 28... Ne5 {[%clk 0:01:40.8]} 29.
Ne4 {[%clk 0:00:18.9]} 29... Qh6 {[%clk 0:01:27.2]} 30. Qd2 {[%clk 0:00:18.2]}
30... b6 {[%clk 0:01:21.1]} 31. Qf2 {[%clk 0:00:13.8]} 31... g5 {[%clk 0:01:20]}
32. Qxb6 {[%clk 0:00:12.4]} 32... g4 {[%clk 0:01:20.7]} 33. Ng3 {[%clk
0:00:10.6]} 33... gxf3 {[%clk 0:01:20.2]} 34. gxf3 {[%clk 0:00:10.1]} 34... Nxf3
{[%clk 0:01:21.1]} 35. Rf2 {[%clk 0:00:09.1]} 35... Rh4 {[%clk 0:01:17.6]} 36.
Nf1 {[%clk 0:00:07.1]} 36... Rhf4 {[%clk 0:01:09.8]} 37. Qe3 {[%clk 0:00:05.6]}
37... Ne5 {[%clk 0:01:03.8]} 38. Rxf4 {[%clk 0:00:04.1]} 38... Rxf4 {[%clk
0:01:04.7]} 39. Ng3 {[%clk 0:00:04.1]} 39... Nf3 {[%clk 0:00:54.7]} 40. Qf2
{[%clk 0:00:02.9]} 40... Nxh2 {[%clk 0:00:53.2]} 41. Qxh2 {[%clk 0:00:03]} 41...
Rh4 {[%clk 0:00:53.6]} 42. Rd2 {[%clk 0:00:02.8]} 42... Qxd2 {[%clk 0:00:52.5]}
0-1

[Event "Late-Titled-Tuesday-Blitz-March-12-2024"]
[Site "Chess.com"]
[Date "2024.03.12"]
[Round "1"]
[White "Mackster23"]
[Black "Incognizance"]
[Result "1-0"]
[WhiteElo "2572"]
[BlackElo "1833"]
[TimeControl "180+1"]
[EndTime "14:06:53 PDT"]
[Termination "Mackster23 won on time"]

1. e4 {[%clk 0:02:59.1]} 1... c5 {[%clk 0:02:59.7]} 2. Nf3 {[%clk 0:02:58.2]}
2... Nc6 {[%clk 0:02:59.9]} 3. d4 {[%clk 0:02:57.1]} 3... cxd4 {[%clk
0:03:00.1]} 4. Nxd4 {[%clk 0:02:58]} 4... e5 {[%clk 0:03:00.6]} 5. Nb5 {[%clk
0:02:57.4]} 5... d6 {[%clk 0:03:01.2]} 6. N1c3 {[%clk 0:02:57.1]} 6... a6 {[%clk
0:03:01.3]} 7. Na3 {[%clk 0:02:57.3]} 7... b5 {[%clk 0:03:01.6]} 8. Nd5 {[%clk
0:02:57.4]} 8... Nge7 {[%clk 0:03:01.1]} 9. c4 {[%clk 0:02:56.8]} 9... Nd4
{[%clk 0:02:54.7]} 10. cxb5 {[%clk 0:02:32.3]} 10... Nxd5 {[%clk 0:02:54.5]} 11.
exd5 {[%clk 0:02:31.8]} 11... Bd7 {[%clk 0:02:54.4]} 12. bxa6 {[%clk 0:02:30.5]}
12... Qa5+ {[%clk 0:02:54.4]} 13. Bd2 {[%clk 0:02:28.1]} 13... Qxd5 {[%clk
0:02:54.4]} 14. Nc2 {[%clk 0:02:28.2]} 14... Qe4+ {[%clk 0:02:47]} 15. Ne3
{[%clk 0:02:28.2]} 15... f5 {[%clk 0:02:18.9]} 16. Bc4 {[%clk 0:01:57.9]} 16...
f4 {[%clk 0:01:47.5]} 17. Bd5 {[%clk 0:01:54.7]} 17... Qd3 {[%clk 0:01:41.6]}
18. Bxa8 {[%clk 0:01:01.7]} 18... fxe3 {[%clk 0:01:41.6]} 19. fxe3 {[%clk
0:01:02.3]} 19... Nc2+ {[%clk 0:01:40]} 20. Kf2 {[%clk 0:01:02.7]} 20... Qf5+
{[%clk 0:01:33.6]} 21. Qf3 {[%clk 0:00:56.1]} 21... Qd3 {[%clk 0:00:44.2]} 22.
Rad1 {[%clk 0:00:25.9]} 22... Be7 {[%clk 0:00:43.8]} 23. a7 {[%clk 0:00:19.2]}
23... Rf8 {[%clk 0:00:42.8]} 24. Qxf8+ {[%clk 0:00:19.4]} 24... Bxf8 {[%clk
0:00:43.5]} 25. Bf3 {[%clk 0:00:19.4]} 25... Qf5 {[%clk 0:00:02.7]} 26. a8=Q+
{[%clk 0:00:18.9]} 26... Ke7 {[%clk 0:00:03.2]} 27. Qe4 {[%clk 0:00:16.6]} 27...
Qxe4 {[%clk 0:00:01.2]} 28. Bxe4 {[%clk 0:00:17.5]} 1-0

[Event "Late-Titled-Tuesday-Blitz-March-12-2024"]
[Site "Chess.com"]
[Date "2024.03.12"]
[Round "1"]
[White "TimGrutter03"]
[Black "Vesapesa"]
[Result "1-0"]
[WhiteElo "2605"]
[BlackElo "2217"]
[TimeControl "180+1"]
[EndTime "14:06:54 PDT"]
[Termination "TimGrutter03 won by checkmate"]

1. d4 {[%clk 0:03:00.9]} 1... d5 {[%clk 0:02:59.4]} 2. c4 {[%clk 0:03:01.2]}
2... e6 {[%clk 0:02:59.5]} 3. Nc3 {[%clk 0:03:00.5]} 3... Nf6 {[%clk 0:02:58.6]}
4. cxd5 {[%clk 0:02:59.5]} 4... exd5 {[%clk 0:02:57.9]} 5. Bg5 {[%clk
0:02:59.9]} 5... Nbd7 {[%clk 0:02:55.1]} 6. e3 {[%clk 0:02:55.1]} 6... Be7
{[%clk 0:02:53.7]} 7. Bd3 {[%clk 0:02:53.7]} 7... c6 {[%clk 0:02:52.3]} 8. Nge2
{[%clk 0:02:53.3]} 8... Nf8 {[%clk 0:02:37.8]} 9. Qc2 {[%clk 0:02:44.8]} 9...
Ne6 {[%clk 0:02:36.6]} 10. Bh4 {[%clk 0:02:43.3]} 10... g6 {[%clk 0:02:36.2]}
11. O-O {[%clk 0:02:33.5]} 11... O-O {[%clk 0:02:33.3]} 12. Rae1 {[%clk
0:02:32]} 12... Ng7 {[%clk 0:02:32.6]} 13. f3 {[%clk 0:02:31.4]} 13... b5 {[%clk
0:02:26.4]} 14. a3 {[%clk 0:02:24.1]} 14... a5 {[%clk 0:02:21.3]} 15. Bf2 {[%clk
0:02:22.9]} 15... Bb7 {[%clk 0:02:04]} 16. e4 {[%clk 0:02:22.6]} 16... b4 {[%clk
0:02:02]} 17. axb4 {[%clk 0:02:17.1]} 17... axb4 {[%clk 0:02:01.6]} 18. Na4
{[%clk 0:02:15.5]} 18... dxe4 {[%clk 0:01:47.1]} 19. fxe4 {[%clk 0:02:15.1]}
19... Ng4 {[%clk 0:01:46.5]} 20. Bc4 {[%clk 0:01:43.4]} 20... Nxf2 {[%clk
0:01:28.8]} 21. Rxf2 {[%clk 0:01:44.3]} 21... Qa5 {[%clk 0:01:11.9]} 22. b3
{[%clk 0:01:40.5]} 22... Ba6 {[%clk 0:00:55.6]} 23. Ref1 {[%clk 0:01:30]} 23...
Bxc4 {[%clk 0:00:49.3]} 24. Qxc4 {[%clk 0:01:30.9]} 24... Ne6 {[%clk 0:00:48.1]}
25. d5 {[%clk 0:01:25.4]} 25... cxd5 {[%clk 0:00:45.2]} 26. exd5 {[%clk
0:01:26.3]} 26... Rac8 {[%clk 0:00:34.3]} 27. Qe4 {[%clk 0:01:18.4]} 27... Bc5
{[%clk 0:00:17.1]} 28. dxe6 {[%clk 0:01:18.2]} 28... Bxf2+ {[%clk 0:00:16.9]}
29. Rxf2 {[%clk 0:01:19.1]} 29... f5 {[%clk 0:00:12.4]} 30. Qe3 {[%clk
0:01:12.4]} 30... Rfe8 {[%clk 0:00:10.8]} 31. g4 {[%clk 0:01:07.7]} 31... fxg4
{[%clk 0:00:05]} 32. e7 {[%clk 0:01:07.8]} 32... Qc7 {[%clk 0:00:03.8]} 33. Qe6+
{[%clk 0:01:07.2]} 33... Kh8 {[%clk 0:00:03.8]} 34. Qf6+ {[%clk 0:01:04.6]}
34... Kg8 {[%clk 0:00:03.2]} 35. Qf7+ {[%clk 0:01:01.7]} 35... Kh8 {[%clk
0:00:03.5]} 36. Qf6+ {[%clk 0:00:53]} 36... Kg8 {[%clk 0:00:03.1]} 37. Qe6+
{[%clk 0:00:53.2]} 37... Kh8 {[%clk 0:00:03.2]} 38. Rf7 {[%clk 0:00:53.7]} 38...
Qa7+ {[%clk 0:00:01.3]} 39. Kf1 {[%clk 0:00:42.6]} 39... Qb7 {[%clk 0:00:01.9]}
40. Qf6+ {[%clk 0:00:42.1]} 40... Kg8 {[%clk 0:00:01.4]} 41. Qg7# {[%clk
0:00:42.5]} 1-0

[Event "Late-Titled-Tuesday-Blitz-March-12-2024"]
[Site "Chess.com"]
[Date "2024.03.12"]
[Round "1"]
[White "ChessFanNM"]
[Black "KChor05"]
[Result "0-1"]
[WhiteElo "2279"]
[BlackElo "2633"]
[TimeControl "180+1"]
[EndTime "14:06:57 PDT"]
[Termination "KChor05 won on time"]

1. Nf3 {[%clk 0:02:59.1]} 1... Nf6 {[%clk 0:02:50.9]} 2. c4 {[%clk 0:02:55]}
2... g6 {[%clk 0:02:50.1]} 3. Nc3 {[%clk 0:02:53.2]} 3... Bg7 {[%clk 0:02:40.6]}
4. e4 {[%clk 0:02:54.1]} 4... d6 {[%clk 0:02:35]} 5. d4 {[%clk 0:02:55]} 5...
O-O {[%clk 0:02:30.8]} 6. Be2 {[%clk 0:02:55.7]} 6... e5 {[%clk 0:02:29.8]} 7.
O-O {[%clk 0:02:56.6]} 7... Nc6 {[%clk 0:02:21.1]} 8. d5 {[%clk 0:02:53.6]} 8...
Ne7 {[%clk 0:02:19.2]} 9. b4 {[%clk 0:02:52.5]} 9... Ne8 {[%clk 0:02:13.6]} 10.
c5 {[%clk 0:02:43.3]} 10... f5 {[%clk 0:02:11.2]} 11. Ng5 {[%clk 0:02:34.4]}
11... Nf6 {[%clk 0:02:01.1]} 12. Bf3 {[%clk 0:02:29.3]} 12... fxe4 {[%clk
0:01:55.2]} 13. Bxe4 {[%clk 0:02:13.9]} 13... Nxe4 {[%clk 0:01:49.5]} 14. Ngxe4
{[%clk 0:02:07]} 14... Nf5 {[%clk 0:01:45.1]} 15. Bg5 {[%clk 0:02:03.6]} 15...
Qe8 {[%clk 0:01:43]} 16. a4 {[%clk 0:01:51.6]} 16... h6 {[%clk 0:01:38.4]} 17.
Bd2 {[%clk 0:01:46.4]} 17... Qf7 {[%clk 0:01:28.1]} 18. b5 {[%clk 0:01:30.2]}
18... Rd8 {[%clk 0:01:21]} 19. Re1 {[%clk 0:01:17.3]} 19... Nd4 {[%clk
0:01:13.5]} 20. a5 {[%clk 0:00:49.4]} 20... dxc5 {[%clk 0:01:03.4]} 21. Nxc5
{[%clk 0:00:46.3]} 21... b6 {[%clk 0:01:03.1]} 22. N5e4 {[%clk 0:00:37.3]} 22...
Bb7 {[%clk 0:01:00.4]} 23. a6 {[%clk 0:00:25.1]} 23... Bxd5 {[%clk 0:00:59.9]}
24. Nxd5 {[%clk 0:00:25]} 24... Rxd5 {[%clk 0:01:00.4]} 25. Nc3 {[%clk
0:00:24.6]} 25... Rd7 {[%clk 0:00:52.7]} 26. Qb1 {[%clk 0:00:19.4]} 26... Nb3
{[%clk 0:00:50.2]} 27. Qe4 {[%clk 0:00:12.8]} 27... Rad8 {[%clk 0:00:45.6]} 28.
Be3 {[%clk 0:00:12.5]} 28... Nxa1 {[%clk 0:00:43.9]} 29. Rxa1 {[%clk 0:00:13.4]}
29... Rd3 {[%clk 0:00:41.6]} 30. Qb4 {[%clk 0:00:10.7]} 30... e4 {[%clk
0:00:41.5]} 31. Qxe4 {[%clk 0:00:04.9]} 31... Bxc3 {[%clk 0:00:38.5]} 32. Rb1
{[%clk 0:00:04.1]} 32... Rd1+ {[%clk 0:00:38.5]} 0-1